[Event "ETCC Open 2023"]
[Site "Budva"]
[Date "2023.11.13"]
[Round "3.23"]
[White "Zilka, Stepan"]
[Black "Shevchenko, Kirill"]
[Result "1/2-1/2"]
[ECO "C17"]
[WhiteElo "2609"]
[BlackElo "2665"]
[Annotator "TA"]
[PlyCount "125"]
[EventDate "2023.11.10"]
[EventType "team-tourn"]
[EventCountry "MNE"]
[SourceTitle "playchess.com"]
[Source "ChessBase"]
[SourceQuality "1"]
[WhiteTeam "Czech Republic"]
[BlackTeam "Romania"]
[WhiteTeamCountry "CZE"]
[BlackTeamCountry "ROU"]
[TimeControl "40/5400+30:1800+30"]

{[%evp 12,125,0,0,0,0,0,-10,-11,-12,-14,-17,-17,-11,-12,-6,-9,-26,-26,-30,-4,0,0,-1,-4,0,102,101,100,102,259,242,248,256,441,468,434,222,392,61,64,75,73,79,77,50,50,70,151,122,114,90,86,86,87,90,90,46,41,18,32,0,38,38,90,90,90,0,0,0,7,7,143,143,163,163,163,163,163,163,1000,992,981,885,908,875,695,91,535,446,234,8,8,8,11,0,0,0,0,0,0,0,0,0,0,0,0,0,0,0,0,0,0,0,0,0]} 1. e4 {[%emt 0:00:06]} e6 {[%emt 0:00:17]} 2. d4 {[%emt 0:00:10]} d5 {[%emt 0:00:03]} 3. Nc3 {[%emt 0:00:09]} Bb4 {[%emt 0:00:10]} 4. e5 {[%emt 0:00:07]} c5 {[%emt 0:00:04]} 5. Bd2 {[%emt 0:00:19]} Ne7 {[%emt 0:00:25]} 6. a3 {[%emt 0:00:20]} Bxc3 {[%emt 0:00:24]} 7. Bxc3 {[%emt 0:00:07]} Nbc6 {[%emt 0:02:59] C17: French: 3 Nc3 Bb4 4 e5 c5 sidelines.} 8. Nf3 {[%emt 0:00:56]} b6 {[%emt 0:06:14]} 9. Bb5 {[%emt 0:12:46]} a6 {[%emt 0:11:21]} 10. Bxc6+ {[%emt 0:00:16]} Nxc6 {[%emt 0:00:04]} 11. O-O {[%emt 0:00:57] [#]} a5 $146 {[%emt 0:06:02]} ({Predecessor:} 11... O-O 12. Qd3 a5 13. Qe3 Ba6 14. Rfe1 Qe7 15. Bd2 cxd4 16. Nxd4 Rfc8 17. Nf3 Qc5 {0-1 Kasperski,M (1755)-Gertner,H (1965) IECC TH-M-2586 2006}) 12. Qd2 {[%emt 0:08:53]} Qe7 {[%emt 0:20:21]} 13. Rfe1 {[%emt 0:04:27]} Ba6 {[%emt 0:07:20]} 14. h4 {[%emt 0:05:09]} h6 {[%emt 0:02:13]} 15. h5 {[%emt 0:04:00]} Qc7 {[%emt 0:11:12]} 16. b4 {[%emt 0:10:33]} cxd4 {[%emt 0:11:33]} 17. Nxd4 {[%emt 0:00:09]} Nxd4 {[%emt 0:02:46]} 18. Bxd4 {[%emt 0:00:10]} Bc4 {[%emt 0:00:09] Black is weak on the dark squares} (18... O-O $11) 19. a4 $16 {[%emt 0:02:55]} axb4 {[%emt 0:03:18]} 20. Qxb4 {[%emt 0:02:49]} Ra6 {[%emt 0:00:01]} (20... Qe7 $16 21. Qxb6 O-O) 21. Reb1 $1 $18 {[%emt 0:08:21]} Kd7 {[%emt 0:00:41]} 22. Ra3 {[%emt 0:00:56][%cal Rd4b6]} ({Don't take} 22. Bxb6 $6 Qxe5 23. a5 Rc8) 22... Rha8 $2 {[%emt 0:02:01]} (22... Kc6 23. Rf3 Kb7) 23. Rf3 {[%emt 0:19:16]} ({Weaker is} 23. Bxb6 Qxe5 24. a5 Qd6 $18) 23... Ke8 {[%emt 0:01:20]} 24. a5 {[%emt 0:02:53]} (24. Bxb6 $142 Qxe5 25. a5 Qxh5 26. Re1) 24... bxa5 $2 {[%emt 0:04:19]} (24... b5 25. Bb6 Qe7) 25. Qb7 $2 {[%emt 0:00:06]} (25. Qa3 $1 $18) 25... Rc8 $14 {[%emt 0:00:48]} 26. Qxc7 {[%emt 0:00:14]} Rxc7 {[%emt 0:00:01] [#]} 27. Rb8+ {[%emt 0:00:07]} Ke7 {[%emt 0:02:22]} 28. Bb6 {[%emt 0:00:30] White has more active pieces.} Rxb6 {[%emt 0:00:12]} 29. Rxb6 {[%emt 0:00:04][%mdl 4096] Endgame KRR-KRB} Ra7 {[%emt 0:00:02]} (29... Be2 $14 30. Ra3 Bxh5) 30. Rg3 {[%emt 0:04:06]} Be2 {[%emt 0:00:55]} 31. Rgb3 {[%emt 0:03:53] Threatens to win with Rb7+.} (31. Rxg7 {with more complications.} a4 32. Rg8 a3 33. Rgb8) 31... Bxh5 {[%emt 0:00:52]} 32. Rb7+ {[%emt 0:00:21]} Rxb7 {[%emt 0:00:01]} 33. Rxb7+ $16 {[%emt 0:00:05] KR-KB} Kf8 {[%emt 0:00:01]} 34. Ra7 {[%emt 0:04:11][%mdl 1024] White has strong compensation.} Bd1 {[%emt 0:01:28]} 35. c3 {[%emt 0:01:52]} a4 {[%emt 0:00:13]} 36. Ra8+ {[%emt 0:00:28]} Ke7 {[%emt 0:00:01]} 37. Kf1 {[%emt 0:00:09]} f6 {[%emt 0:04:56]} (37... Bb3 $14) 38. Ra7+ {[%emt 0:01:16]} Kf8 {[%emt 0:00:00]} 39. f4 {[%emt 0:00:33]} (39. exf6 $16 gxf6 40. Ke1) 39... fxe5 $11 {[%emt 0:02:01]} 40. fxe5 {[%emt 0:00:05]} Bb3 {[%emt 0:00:44]} 41. Kf2 {[%emt 0:32:00]} d4 {[%emt 0:08:02]} 42. cxd4 $16 {[%emt 0:00:00]} Kg8 {[%emt 0:00:18]} 43. g4 {[%emt 0:00:00]} Kh7 {[%emt 0:08:52]} 44. Ke1 {[%emt 0:00:00]} Kg6 {[%emt 0:06:45]} 45. Kd2 {[%emt 0:00:00]} Kh7 $2 {[%emt 0:00:01]} (45... Bd5 46. Rxa4 Kg5) 46. Kc3 $18 {[%emt 0:00:00]} Kg6 {[%emt 0:00:04]} 47. Re7 {[%emt 0:00:00]} Bd5 {[%emt 0:00:57]} 48. Kb4 {[%emt 0:00:00]} Bb3 {[%emt 0:00:01]} 49. Ra7 {[%emt 0:00:00]} Kh7 {[%emt 0:00:21]} 50. Kc5 {[%emt 0:00:00][%cal Od4d5]} Kg6 {[%emt 0:00:05] [#]} 51. Kd6 $2 {[%emt 0:00:00]} ({Only move:} 51. Kb5 $1 $18) 51... Kg5 $11 {[%emt 0:01:22] The position is equal.} 52. Rxg7+ {[%emt 0:00:00]} Kf4 {[%emt 0:00:12]} 53. Rg6 {[%emt 0:00:00]} (53. Ra7 {simplifies} Kxg4 54. d5 Bxd5 55. Rxa4+ Kg5 56. Ra5) 53... a3 {[%emt 0:00:18] White must now prevent ...a2.} 54. Rxh6 {[%emt 0:00:00]} a2 {[%emt 0:00:26]} 55. Rh1 {[%emt 0:00:00]} Kxg4 {[%emt 0:00:03]} 56. Kc5 {[%emt 0:00:00]} Kf4 {[%emt 0:01:08]} 57. Kb4 {[%emt 0:00:00]} Bd5 {[%emt 0:00:14]} 58. Re1 {[%emt 0:00:00]} Kf3 {[%emt 0:00:35]} 59. Kc3 {[%emt 0:00:00]} Kf2 {[%emt 0:00:08]} 60. Kd2 {[%emt 0:00:52]} Bc4 {[%emt 0:00:42]} 61. Rc1 {[%emt 0:00:41]} Bd5 {[%emt 0:00:35]} 62. Kc3 {[%emt 0:01:12]} Ke3 {[%emt 0:00:19]} 63. Ra1 {[%emt 0:03:00] White really could win this.   Weighted Error Value: White=0.27 (precise) /Black=0.25 (precise)} 1/2-1/2

[Event "ETCC Open 2023"]
[Site "Budva"]
[Date "2023.11.13"]
[Round "3.24"]
[White "Lupulescu, Constantin"]
[Black "Stalmach, Richard"]
[Result "1-0"]
[ECO "D35"]
[WhiteElo "2582"]
[BlackElo "2420"]
[Annotator "TA"]
[PlyCount "113"]
[EventDate "2023.11.10"]
[EventType "team-tourn"]
[EventCountry "MNE"]
[SourceTitle "playchess.com"]
[Source "ChessBase"]
[SourceQuality "1"]
[WhiteTeam "Romania"]
[BlackTeam "Czech Republic"]
[WhiteTeamCountry "ROU"]
[BlackTeamCountry "CZE"]
[TimeControl "40/5400+30:1800+30"]

{[%evp 15,113,17,13,0,16,5,12,7,17,2,14,9,11,13,16,21,15,16,51,42,58,49,50,49,58,-2,8,0,0,0,0,0,0,-32,0,0,-25,-28,-33,-57,-32,-21,25,-9,0,-26,27,7,28,22,34,32,40,44,54,0,4,0,60,66,56,50,52,52,239,61,266,268,265,256,369,198,197,194,572,83,84,69,772,763,773,770,761,761,709,665,763,668,6090,6087,6038,5938,5297,5281,29975,29976,29976,29968,29984,29985]} 1. d4 {[%emt 0:00:06]} Nf6 {[%emt 0:00:14]} 2. c4 {[%emt 0:00:04]} e6 {[%emt 0:00:06]} 3. Nc3 {[%emt 0:00:05]} d5 {[%emt 0:00:10]} 4. cxd5 {[%emt 0:00:09]} exd5 {[%emt 0:00:05]} 5. Bg5 {[%emt 0:00:35]} c6 {[%emt 0:00:45]} 6. e3 {[%emt 0:00:23]} h6 {[%emt 0:00:41]} 7. Bh4 {[%emt 0:00:11]} Be7 {[%emt 0:00:15]} 8. Bd3 {[%emt 0:00:30]} O-O {[%emt 0:00:33]} 9. Nge2 {[%emt 0:01:02] D35: Queen's Gambit Declined: Exchange Variation.} Nbd7 {[%emt 0:02:24]} 10. f3 {[%emt 0:08:15]} Re8 {[%emt 0:01:26]} 11. O-O {[%emt 0:03:16] The position is equal.} b5 {[%emt 0:00:17]} 12. Bf2 {[%emt 0:14:23]} a5 {[%emt 0:01:24][%cal Ba7a5,Ba5a4][%mdl 32]} 13. Ng3 {[%emt 0:06:51]} Nb6 {[%emt 0:05:11]} 14. Rc1 {[%emt 0:01:40]} a4 {[%emt 0:05:33] [#]} 15. b3 $146 {[%emt 0:10:40]} ({Predecessor:} 15. Bb1 Be6 16. h3 Nfd7 17. Nce2 Rc8 18. Nf4 Nf8 19. Nxe6 Nxe6 20. Qd3 Nf8 21. Nf5 {1-0 Steingrimsson,H (2504)-Hakobyan,A (2620) Chesterfield SPICE Cup op 2022 (3)}) 15... Bd7 {[%emt 0:06:27]} 16. h3 {[%emt 0:05:45]} h5 {[%emt 0:09:00]} 17. e4 {[%emt 0:16:09] And now e5 would win.} h4 {[%emt 0:06:36]} 18. Nge2 {[%emt 0:01:46]} axb3 {[%emt 0:01:30]} 19. axb3 {[%emt 0:00:45]} Nh5 {[%emt 0:01:47]} 20. Qd2 {[%emt 0:03:55]} (20. e5 $14) 20... Ra3 {[%emt 0:06:55]} 21. Bc2 {[%emt 0:02:08]} dxe4 {[%emt 0:12:26]} 22. fxe4 {[%emt 0:00:18]} b4 {[%emt 0:00:53]} 23. Nd1 $1 {[%emt 0:05:38]} Be6 {[%emt 0:00:34]} 24. Rb1 {[%emt 0:02:42]} Ra2 {[%emt 0:02:48]} (24... c5 $5) 25. Rb2 {[%emt 0:03:20]} Ra5 {[%emt 0:02:54]} 26. Qd3 {[%emt 0:02:37][%cal Od4d5]} g6 {[%emt 0:01:52]} 27. Qf3 {[%emt 0:01:30]} Bg5 {[%emt 0:02:51][%cal Oc6c5]} 28. Ne3 {[%emt 0:02:58]} Qd7 {[%emt 0:02:28]} (28... c5 $142) 29. Rd1 {[%emt 0:01:20]} (29. Bb1 $5) 29... Rd8 {[%emt 0:02:12]} 30. Nf1 {[%emt 0:02:02][%cal Od4d5]} Qc7 {[%emt 0:02:40]} (30... Qe7 $142) 31. Be3 $11 {[%emt 0:00:57]} Bxe3+ {[%emt 0:03:14]} (31... Re8 {looks sharper.} 32. Nd2 Nd7 33. Bxg5 Rxg5 34. Qe3 Ng3) 32. Qxe3 {[%emt 0:01:27]} Re8 {[%emt 0:05:06]} 33. Qf2 {[%emt 0:00:50]} Qd8 {[%emt 0:02:20]} 34. Nh2 {[%emt 0:02:17]} Bc8 {[%emt 0:06:13]} 35. Bd3 {[%emt 0:00:39]} (35. Rf1 $14 Re7 36. Nf3 (36. Qxh4 Ba6 $16)) 35... Ng3 $1 {[%emt 0:00:52]} 36. e5 {[%emt 0:00:44]} (36. Qf4 {with more complications.} Ra1 37. Rxa1 Nxe2+ 38. Rxe2 Qxd4+ 39. Rf2) 36... Nxe2+ {[%emt 0:02:58]} ({Black should play} 36... Bf5 $11 37. Bxf5 Nxf5) 37. Bxe2 $14 {[%emt 0:00:04]} Nd5 {[%emt 0:00:12]} 38. Nf3 {[%emt 0:00:19] Wards off Qg5} Nc3 {[%emt 0:00:18]} 39. Re1 {[%emt 0:00:35]} c5 $2 {[%emt 0:01:37]} 40. dxc5 $2 {[%emt 0:00:16]} (40. Bc4 $18) 40... Qd5 $2 {[%emt 0:03:48]} (40... Qe7 $14) 41. Qxh4 $18 {[%emt 0:06:46] [#] Black must now prevent Bc4.} Qxc5+ {[%emt 0:06:47]} 42. Kh1 {[%emt 0:01:33]} Be6 {[%emt 0:02:37]} (42... Nxe2 $142 43. Rbxe2 Kg7 44. Qf6+ Kg8) 43. Bc4 {[%emt 0:08:07]} (43. Bd3 $142 Qf8 44. Ng5) 43... Bxc4 {[%emt 0:04:56]} 44. bxc4 {[%emt 0:00:05]} Ra7 $2 {[%emt 0:00:17]} (44... Qe7 {is tougher.}) 45. Ng5 $2 {[%emt 0:11:02]} (45. Rd2 $18 {Threatens to win with Ng5.} Qf8 46. c5) 45... f6 $16 {[%emt 0:00:51]} 46. Qh6 $40 {[%emt 0:00:33][%mdl 128] White is up to no good.} Rg7 {[%emt 0:01:00][%mdl 8192] [#]} (46... Qf8 $14 47. Qxf8+ (47. Qxg6+ Rg7 $17) 47... Kxf8) 47. Nh7 $1 $18 {[%emt 0:00:40][%cal Bg5h7,Bh7f6,Bf6g4][%mdl 608] Decoy} Rxe5 {[%emt 0:02:09]} 48. Nxf6+ {[%emt 0:00:37]} Kf7 {[%emt 0:00:02]} 49. Rxe5 {[%emt 0:01:11]} Qxe5 {[%emt 0:00:05]} 50. Ng4 {[%emt 0:00:08]} Qe1+ {[%emt 0:08:22]} 51. Kh2 {[%emt 0:00:03] Qf4+ is the strong threat.} Qe7 {[%emt 0:04:04]} 52. Rf2+ {[%emt 0:02:02]} Ke6 {[%emt 0:00:09]} 53. Qe3+ {[%emt 0:00:12]} Kd7 {[%emt 0:02:07]} 54. Qa7+ {[%emt 0:00:25]} Kd8 {[%emt 0:01:12]} 55. Qb8+ {[%emt 0:01:33] White mates.} Kd7 {[%emt 0:00:01]} 56. Qb7+ {[%emt 0:00:52]} Kd8 {[%emt 0:03:43]} 57. Rd2+ {[%emt 0:00:22] An entertaining game by Lupulescu.   Weighted Error Value: White=0.35/Black=0.47} 1-0

[Event "ETCC Open 2023"]
[Site "Budva"]
[Date "2023.11.13"]
[Round "3.25"]
[White "Vitiugov, Nikita"]
[Black "Saric, Ivan"]
[Result "1/2-1/2"]
[ECO "D50"]
[WhiteElo "2712"]
[BlackElo "2659"]
[Annotator "TA"]
[PlyCount "48"]
[EventDate "2023.11.10"]
[EventType "team-tourn"]
[EventCountry "MNE"]
[SourceTitle "playchess.com"]
[Source "ChessBase"]
[SourceQuality "1"]
[WhiteTeam "England"]
[BlackTeam "Croatia"]
[WhiteTeamCountry "ENG"]
[BlackTeamCountry "CRO"]
[TimeControl "40/5400+30:1800+30"]

{[%evp 14,48,19,16,16,16,18,0,3,8,6,10,20,20,20,20,19,0,0,0,0,0,0,0,0,0,0,0,0,0,0,0,0,0,0,0,0]} 1. d4 {[%emt 0:00:56]} Nf6 {[%emt 0:00:05]} 2. c4 {[%emt 0:00:17]} e6 {[%emt 0:00:05]} 3. Nf3 {[%emt 0:00:28]} d5 {[%emt 0:00:06]} 4. Nc3 {[%emt 0:00:22]} c5 {[%emt 0:00:46]} 5. cxd5 {[%emt 0:03:22]} cxd4 {[%emt 0:00:27]} 6. Qxd4 {[%emt 0:00:20]} exd5 {[%emt 0:00:04]} 7. Bg5 {[%emt 0:01:12]} Be7 {[%emt 0:00:11]} 8. e3 {[%emt 0:00:42] The position is equal.} O-O {[%emt 0:03:00] D50: Queen's Gambit Declined: Dutch-Peruvian Gambit.} 9. Be2 {[%emt 0:02:17]} h6 {[%emt 0:02:24]} 10. Bh4 {[%emt 0:04:17]} Nc6 {[%emt 0:00:10]} 11. Qd3 {[%emt 0:00:18]} Qb6 {[%emt 0:02:23]} 12. O-O {[%emt 0:00:33]} Rd8 {[%emt 0:00:54]} ({But not} 12... Qxb2 13. Rab1 (13. Nxd5 Nxd5 14. Rfb1 Qc3 $11) 13... Qa3 14. Bxf6 (14. Nxd5 Nxd5 15. Qxd5 Bxh4 $11) 14... Bxf6 15. Nxd5 $16) 13. Rfd1 {[%emt 0:01:13]} Be6 {[%emt 0:11:27]} 14. h3 {[%emt 0:06:20]} a6 {[%emt 0:03:42]} 15. a3 {[%emt 0:05:24] [#]} g5 $146 {[%emt 0:03:38]} (15... Qxb2 $2 16. Rdb1 $18) ({Predecessor:} 15... Rac8 16. b4 Qa7 17. Rac1 b5 18. Bf1 Qb6 19. Ne2 g5 20. Bg3 Ne4 21. Bh2 a5 {½-½ Wojtaszek,R (2696)-Moranda,W (2630) POL-ch Lotto 79th 2022 (3.1)}) 16. Bg3 {[%emt 0:00:58]} Ne4 $1 {[%emt 0:00:10]} 17. Nxe4 {[%emt 0:02:30]} dxe4 {[%emt 0:00:04]} 18. Qxe4 {[%emt 0:00:06] [#] aiming for Bd3.} Qxb2 {[%emt 0:00:09]} ({Much less strong is} 18... Rxd1+ 19. Rxd1 Qxb2 20. Bd3 $16) 19. Bd3 {[%emt 0:03:11]} Qg7 {[%emt 0:00:07] Dodges Qh7+} 20. Rab1 {[%emt 0:11:15]} Bd5 {[%emt 0:01:27]} 21. Qg4 {[%emt 0:05:28]} Be6 {[%emt 0:00:14]} 22. Qe4 {[%emt 0:00:16]} Bd5 {[%emt 0:00:04]} 23. Qg4 {[%emt 0:00:31]} Be6 {[%emt 0:00:05]} 24. Qe4 {[%emt 0:02:07]} Bd5 {[%emt 1:10:48] A rather calm draw.   Weighted Error Value: White=0.01 (flawless) /Black=0.00 (flawless)} 1/2-1/2

[Event "ETCC Open 2023"]
[Site "Budva"]
[Date "2023.11.13"]
[Round "3.26"]
[White "Brkic, Ante"]
[Black "Howell, David W L"]
[Result "1/2-1/2"]
[ECO "C65"]
[WhiteElo "2622"]
[BlackElo "2676"]
[Annotator "TA"]
[PlyCount "113"]
[EventDate "2023.11.10"]
[EventType "team-tourn"]
[EventCountry "MNE"]
[SourceTitle "playchess.com"]
[Source "ChessBase"]
[SourceQuality "1"]
[WhiteTeam "Croatia"]
[BlackTeam "England"]
[WhiteTeamCountry "CRO"]
[BlackTeamCountry "ENG"]
[TimeControl "40/5400+30:1800+30"]

{[%evp 9,113,7,2,0,0,2,16,12,14,4,9,9,12,14,9,4,12,0,6,6,12,16,20,20,25,20,34,20,20,20,20,24,22,29,26,36,33,35,37,31,33,33,25,33,34,28,25,25,28,18,16,9,11,14,22,18,18,0,0,0,12,0,0,0,0,0,30,0,0,0,0,0,0,0,0,0,0,0,0,0,0,0,0,0,0,0,0,0,0,0,0,0,0,0,0,0,0,0,0,0,0,0,0,0,0,0]} 1. e4 {[%emt 0:00:02]} e5 {[%emt 0:00:25]} 2. Nf3 {[%emt 0:00:05]} Nc6 {[%emt 0:00:22]} 3. Bb5 {[%emt 0:00:06]} Nf6 {[%emt 0:00:32]} 4. d3 {[%emt 0:00:11]} Bc5 {[%emt 0:00:45]} 5. Ba4 {[%emt 0:00:23]} O-O {[%emt 0:02:19]} 6. O-O {[%emt 0:01:16] C65: Ruy Lopez: Berlin Defence (3...Nf6), unusual lines and 4 0-0 Bc5.} d6 {[%emt 0:03:21]} 7. c3 {[%emt 0:00:09]} Bb6 {[%emt 0:07:39]} 8. Nbd2 {[%emt 0:00:19] 8.h3 is the fancy move.} Ne7 {[%emt 0:00:15]} 9. Nc4 {[%emt 0:00:34]} Ng6 {[%emt 0:00:15]} 10. Bc2 {[%emt 0:01:42]} Re8 {[%emt 0:07:57]} 11. Re1 {[%emt 0:05:45]} Be6 {[%emt 0:10:59]} 12. Nxb6 {[%emt 0:00:56]} axb6 {[%emt 0:00:06]} 13. h3 {[%emt 0:02:22]} b5 {[%emt 0:04:43]} 14. a3 {[%emt 0:03:13]} h6 {[%emt 0:10:08]} 15. d4 {[%emt 0:00:18]} c6 {[%emt 0:00:07]} 16. Be3 {[%emt 0:00:21]} Qc7 {[%emt 0:01:29]} 17. Nd2 {[%emt 0:01:41]} Rad8 {[%emt 0:02:49] [#]} 18. Qe2 $146 {[%emt 0:01:15]} ({Predecessor:} 18. a4 bxa4 19. Rxa4 Ra8 20. Qa1 Rxa4 21. Qxa4 d5 22. dxe5 Qxe5 23. exd5 Qxd5 24. Qb4 Qd7 25. Bxg6 {½-½ Smirin,I (2663)-Quesada Perez,Y (2636) Washington op 2nd 2013 (6)}) 18... d5 {[%emt 0:10:24]} 19. dxe5 {[%emt 0:03:02]} Qxe5 {[%emt 0:01:51][%cal Rd5e4]} 20. Bd4 {[%emt 0:08:05]} Qg5 {[%emt 0:10:16]} 21. Nf3 {[%emt 0:02:45]} Qh5 {[%emt 0:03:00][%cal Oe6h3]} 22. Bxf6 {[%emt 0:02:14]} gxf6 {[%emt 0:00:36]} 23. exd5 {[%emt 0:03:02]} Rxd5 {[%emt 0:05:51]} 24. Nd4 {[%emt 0:09:46] [#] Black must now prevent Qxh5.} Qg5 {[%emt 0:04:08]} 25. Bxg6 {[%emt 0:26:21]} Qxg6 {[%emt 0:02:54]} 26. Qf3 {[%emt 0:02:39]} Re5 {[%emt 0:05:40] Threatens to win with ...Bd5.} 27. Rxe5 {[%emt 0:04:56]} fxe5 {[%emt 0:00:09]} 28. Nxe6 {[%emt 0:00:02]} Rxe6 $14 {[%emt 0:00:27][%mdl 4096] Endgame KQR-KQR} 29. Re1 {[%emt 0:00:46]} Kg7 {[%emt 0:04:41]} 30. Qe3 {[%emt 0:11:27]} Qg5 {[%emt 0:00:41]} 31. Qd3 {[%emt 0:01:01]} e4 {[%emt 0:00:39]} 32. Qd4+ {[%emt 0:01:04]} Qf6 {[%emt 0:00:27]} (32... Kg8 {is more complex.} 33. Re3 Qf4 34. Rg3+ Kf8) 33. Qb6 {[%emt 0:01:15]} Qe7 {[%emt 0:00:29]} 34. Qd4+ {[%emt 0:01:34]} Qf6 {[%emt 0:00:01]} 35. Qa7 {[%emt 0:01:12]} Qe7 {[%emt 0:00:10]} 36. Re3 {[%emt 0:00:32]} Rd6 {[%emt 0:00:30]} 37. Qb8 {[%emt 0:00:43]} Kh7 {[%emt 0:00:36]} 38. Qc8 {[%emt 0:02:22]} (38. Rg3 {keeps more tension.} Rd8 39. Qf4 Rd1+ 40. Kh2) 38... Rd5 {[%emt 0:01:09] Repels Qf5+. The position is equal.} 39. Qb8 {[%emt 0:03:31]} Rd3 {[%emt 0:00:38]} 40. Qf4 {[%emt 0:00:39]} Rxe3 {[%emt 0:00:16]} 41. Qf5+ {[%emt 0:03:31]} Kh8 {[%emt 0:06:58]} 42. fxe3 $11 {[%emt 0:00:09] KQ-KQ} Kg7 {[%emt 0:00:04]} 43. Kf2 {[%emt 0:12:30]} Qh4+ {[%emt 0:07:15]} 44. Ke2 {[%emt 0:03:03]} Qe7 {[%emt 0:02:14]} 45. Qg4+ {[%emt 0:01:54]} Kh7 {[%emt 0:02:13]} 46. Qf5+ {[%emt 0:00:17]} Kg7 {[%emt 0:00:06]} 47. Kf2 {[%emt 0:01:15]} Qh4+ {[%emt 0:00:08]} 48. g3 {[%emt 0:07:33]} Qd8 {[%emt 0:06:44] [#] ...Qd2+ would be deadly.} 49. Qg4+ {[%emt 0:00:29]} Kh8 {[%emt 0:00:05]} 50. Qxe4 {[%emt 0:00:32] Strongly threatening Qd4+.} Qd2+ {[%emt 0:00:19]} 51. Kf3 {[%emt 0:00:05] aiming for Qd4+.} Qxb2 {[%emt 0:00:20]} 52. Qd4+ {[%emt 0:02:09]} Kg8 {[%emt 0:00:44]} 53. Qg4+ {[%emt 0:00:13]} Kh7 {[%emt 0:00:37]} 54. Qe4+ {[%emt 0:00:30]} Kg8 {[%emt 0:00:26]} 55. Qg4+ {[%emt 0:00:08]} Kh7 {[%emt 0:00:05]} 56. Qe4+ {[%emt 0:00:05]} Kg8 {[%emt 0:00:08]} 57. Qg4+ {[%emt 0:00:04] Weighted Error Value: White=0.02 (flawless) /Black=0.02 (flawless)} 1/2-1/2